bitfinex-derivatives/quotes_BTCF0:USTF0_20240910
["timestamp","ask_amount","ask_price","bid_price","bid_amount"]
[1725991616158,0.297273,57288.0,57287.0,0.0004]
[1725991618956,0.097273,57288.0,57287.0,0.0004]
[1725991619165,0.01,57288.0,57287.0,0.087675]
[1725991620661,0.03829983,57288.0,57287.0,0.087675]
[1725991620862,0.03829983,57288.0,57287.0,0.0004]
[1725991620863,0.12557283,57288.0,57287.0,0.0004]
[1725991621057,0.41284583,57288.0,57287.0,0.0004]
[1725991621364,0.51729183,57288.0,57287.0,0.0004]
[1725991621660,1.91284583,57288.0,57287.0,0.0004]
[1725991621970,0.14287793,57288.0,57287.0,0.087675]
[1725991622264,0.21284491,57288.0,57287.0,0.0004]
[1725991622466,1.8174237,57288.0,57287.0,0.0004]
[1725991623062,1.7128456,57288.0,57287.0,0.0004]
[1725991623566,1.74936997,57288.0,57287.0,0.0004]
[1725991624166,1.684546,57288.0,57287.0,0.0004]
[1725991624565,1.597273,57288.0,57287.0,0.06978914]
[1725991624872,1.597273,57288.0,57287.0,0.0004]
[1725991625367,0.097273,57288.0,57287.0,0.0004]
[1725991627584,0.184546,57288.0,57287.0,0.0004]
[1725991627789,0.184546,57288.0,57287.0,0.07003044]
[1725991627983,0.271819,57288.0,57287.0,0.07003044]
[1725991628182,0.087281,57283.0,57280.0,0.08744076]
[1725991628386,0.374568,57281.0,57280.0,0.0004]
[1725991628581,0.374968,57281.0,57280.0,0.0004]
[1725991628784,2.998688,57281.0,57280.0,0.0004]
[1725991629089,2.398688,57281.0,57280.0,0.0004]
[1725991629286,2.22412,57281.0,57280.0,0.06964324]
[1725991629491,2.398688,57281.0,57280.0,0.001]
[1725991629981,2.398688,57281.0,57280.0,0.003]
[1725991630181,1.587684,57281.0,57280.0,0.07264324]
[1725991630382,0.087684,57281.0,57280.0,0.0725759]
[1725991630587,0.087684,57281.0,57280.0,0.003]
[1725991630888,0.287684,57281.0,57280.0,0.003]
[1725991631784,1.3550043,57281.0,57278.0,0.06957876]
[1725991632089,0.087289,57278.0,57277.0,0.05218314]
[1725991632286,0.2004,57278.0,57274.0,0.05219254]
[1725991632488,0.087301,57270.0,57267.0,0.05219254]
[1725991632690,0.087305,57267.0,57266.0,0.05219254]
[1725991632988,0.087705,57267.0,57266.0,0.05219254]
[1725991633391,0.087309,57265.0,57264.0,0.06063622]
[1725991633694,0.087709,57265.0,57264.0,0.06063622]
[1725991634482,0.087709,57265.0,57264.0,0.00844368]
[1725991634695,0.176018,57265.0,57264.0,0.01044368]
[1725991634998,1.299898,57265.0,57264.0,0.00602519]
[1725991635495,0.699898,57265.0,57264.0,0.00602519]
[1725991635792,0.73087139,57265.0,57264.0,0.00602519]
[1725991635997,0.12068239,57265.0,57264.0,0.00602519]
[1725991636188,0.64456239,57265.0,57264.0,0.00602519]
[1725991636386,0.03337339,57265.0,57264.0,0.00402519]
[1725991636585,0.03337339,57265.0,57264.0,0.10312519]
[1725991637091,0.03337339,57265.0,57264.0,0.19043519]
[1725991637291,0.03337339,57265.0,57264.0,0.39043519]
[1725991637498,0.087294,57275.0,57264.0,1.49658395]
[1725991637696,0.087293,57275.0,57274.0,0.0004]
[1725991637892,0.287293,57275.0,57274.0,0.0004]
[1725991638395,0.40525117,57275.0,57274.0,0.0004]
[1725991638607,0.40625117,57275.0,57274.0,0.0004]
[1725991638897,1.53005117,57275.0,57274.0,0.0004]
[1725991639096,0.43456036,57275.0,57274.0,0.0004]
[1725991639396,0.43456036,57275.0,57274.0,0.0024]
[1725991639589,0.53986199,57275.0,57274.0,0.0024]
[1725991639889,0.45256899,57275.0,57274.0,0.0024]
[1725991640091,0.34826441,57275.0,57274.0,0.0024]
[1725991640497,0.45256604,57275.0,57274.0,0.0024]
[1725991641294,1.66365904,57275.0,57274.0,0.0024]
[1725991641594,1.61192611,57275.0,57274.0,0.0024]
[1725991641799,1.69921911,57275.0,57274.0,0.0024]
[1725991643399,0.38582611,57275.0,57274.0,0.0024]
[1725991643597,0.45256421,57275.0,57274.0,0.0024]
[1725991643796,0.1482675,57275.0,57274.0,0.0024]
[1725991644097,0.3482675,57275.0,57274.0,0.0024]
[1725991644801,0.1482675,57275.0,57274.0,0.0024]
[1725991644999,0.1482675,57275.0,57274.0,0.089695]
[1725991645000,0.03266517,57275.0,57274.0,0.089695]
[1725991645298,0.03266517,57275.0,57274.0,0.613495]
[1725991645602,0.10429671,57283.0,57281.0,0.087284]
[1725991645815,0.19157771,57284.0,57282.0,0.0936]
[1725991646103,0.02830306,57283.0,57282.0,0.094]
[1725991646287,0.11558412,57283.0,57282.0,0.094]
[1725991646997,0.11558412,57283.0,57282.0,0.0004]
[1725991647199,0.087281,57283.0,57282.0,0.0004]
[1725991648099,0.174562,57283.0,57282.0,0.0004]
[1725991650997,0.087295,57274.0,57273.0,0.05206916]
[1725991651298,0.087299,57271.0,57270.0,0.05206916]
[1725991651505,0.087699,57271.0,57270.0,0.05206916]
[1725991651899,0.04401951,57271.0,57268.0,0.06942555]
[1725991652201,0.04361951,57271.0,57270.0,0.087301]
[1725991652498,0.04361951,57271.0,57270.0,0.13940988]
[1725991652696,0.04361951,57271.0,57270.0,0.087301]
[1725991652894,0.04461951,57271.0,57270.0,0.089301]
[1725991653598,0.001,57271.0,57270.0,0.14142492]
[1725991653797,0.001,57271.0,57270.0,0.089301]
[1725991654002,0.12033181,57271.0,57270.0,0.089301]
[1725991654198,0.21832134,57271.0,57270.0,0.089301]
[1725991654403,0.28487039,57271.0,57267.0,0.04923008]
[1725991654599,0.44329079,57270.0,57269.0,0.087302]
[1725991654803,0.16453858,57270.0,57269.0,0.087302]
[1725991655388,0.25800295,57270.0,57269.0,0.087302]
[1725991655595,0.16453858,57270.0,57269.0,0.087302]
[1725991655791,0.25183958,57270.0,57269.0,0.087302]
[1725991656208,0.25283958,57270.0,57269.0,0.089302]
[1725991656403,0.25283958,57270.0,57269.0,0.002]
[1725991656607,0.54014058,57270.0,57269.0,0.002]
[1725991656906,0.45283958,57270.0,57269.0,0.002]
[1725991657507,0.45383958,57270.0,57269.0,0.004]
[1725991658308,0.45383958,57270.0,57269.0,0.091302]
[1725991658309,0.25383958,57270.0,57269.0,0.091302]
[1725991658701,0.16653858,57270.0,57269.0,0.091302]
[1725991658902,0.06854905,57270.0,57269.0,0.178604]
[1725991659111,0.24271886,57270.0,57269.0,1.302444]
[1725991659406,0.16653858,57270.0,57269.0,1.302444]
[1725991660107,0.34070839,57270.0,57269.0,1.302444]
[1725991660513,0.17416981,57272.0,57271.0,0.174598]
[1725991660812,0.06569216,57272.0,57271.0,0.887299]
[1725991661008,0.06569216,57272.0,57271.0,1.411539]
[1725991661210,0.03738941,57272.0,57271.0,1.411539]
[1725991661409,0.13438141,57272.0,57271.0,1.411539]
[1725991661798,0.08291585,57273.0,57272.0,0.174596]
[1725991662003,0.08291585,57273.0,57272.0,0.698796]
[1725991662004,0.07895435,57273.0,57272.0,0.698796]
[1725991662206,0.07895435,57273.0,57272.0,1.298796]
[1725991662516,0.17416981,57278.0,57277.0,0.08729]
[1725991662807,0.17416981,57278.0,57277.0,0.40807319]
[1725991663108,0.17416981,57278.0,57277.0,1.53183319]
[1725991663305,0.17416981,57278.0,57277.0,1.73173319]
[1725991664206,0.03209136,57285.0,57277.0,1.73173319]
[1725991664403,0.087274,57288.0,57287.0,0.087275]
[1725991664607,0.2,57291.0,57290.0,0.08727]
[1725991664911,0.087264,57294.0,57293.0,0.087265]
[1725991665106,0.087264,57294.0,57293.0,0.13934185]
[1725991665603,0.087259,57298.0,57293.0,0.05247685]
[1725991665811,0.087261,57297.0,57296.0,0.087261]
[1725991666010,0.087261,57297.0,57296.0,0.13932294]
[1725991666408,0.087261,57297.0,57296.0,0.13930507]
[1725991667402,0.087261,57297.0,57296.0,0.087261]
[1725991668008,0.087261,57297.0,57296.0,0.13930507]
[1725991668519,0.101261,57297.0,57296.0,0.087261]
[1725991668904,0.115261,57297.0,57296.0,0.087261]
[1725991669304,0.11544472,57297.0,57296.0,0.087261]
[1725991669511,0.23562796,57297.0,57296.0,0.087261]
[1725991669706,0.15817722,57297.0,57296.0,0.087261]
[1725991669920,0.15817722,57297.0,57296.0,1.298122]
[1725991670108,0.10461493,57297.0,57296.0,1.298122]
[1725991670311,0.16697701,57297.0,57296.0,1.298122]
[1725991670620,0.12151422,57298.0,57297.0,0.610859]
[1725991670816,0.12151422,57298.0,57297.0,0.993319]
[1725991670817,0.03456171,57298.0,57297.0,0.993319]
[1725991671116,0.12151422,57299.0,57298.0,0.174516]
[1725991671315,0.12151422,57299.0,57298.0,0.785734]
[1725991671611,0.03381452,57299.0,57298.0,1.298476]
[1725991672010,0.01224179,57299.0,57298.0,1.298476]
[1725991672211,0.03393074,57305.0,57299.0,0.52356]
[1725991672412,0.12142985,57314.0,57313.0,0.087235]
[1725991672712,0.12142985,57315.0,57314.0,0.087234]
[1725991672912,0.03369492,57315.0,57314.0,0.087634]
[1725991673116,0.22599981,57318.0,57315.0,0.087232]
[1725991673310,0.07641173,57317.0,57315.0,0.087232]
[1725991673617,0.12120613,57317.0,57315.0,0.087232]
[1725991673819,0.03369513,57316.0,57315.0,0.087232]
[1725991674817,0.03369513,57316.0,57315.0,0.088232]
[1725991675614,0.04569513,57316.0,57315.0,0.089232]
[1725991676316,0.13292613,57316.0,57315.0,0.002]
[1725991676522,0.13292613,57316.0,57315.0,0.001]
[1725991676720,0.14292613,57316.0,57315.0,0.089232]
[1725991677321,0.109231,57316.0,57315.0,0.089232]
[1725991678416,0.196462,57316.0,57315.0,0.002]
[1725991678926,0.296862,57316.0,57315.0,0.002]
[1725991680316,0.209631,57316.0,57315.0,0.002]
[1725991684022,0.296862,57316.0,57315.0,0.002]
[1725991684322,0.087246,57307.0,57306.0,0.087245]
[1725991684517,0.287646,57307.0,57306.0,0.087245]
[1725991685518,0.087254,57301.0,57300.0,0.087254]
[1725991685731,0.0004,57301.0,57297.0,0.0993]
[1725991685916,0.0004,57298.0,57297.0,0.18656]
[1725991686115,0.0004,57301.0,57300.0,0.087255]
[1725991686317,0.0004,57301.0,57300.0,0.17491]
[1725991686530,0.0004,57301.0,57300.0,1.29847]
[1725991686916,0.005,57307.0,57306.0,0.374492]
[1725991687129,0.005,57307.0,57306.0,0.374892]
[1725991687424,0.003,57307.0,57306.0,0.374892]
[1725991687927,0.087236,57313.0,57312.0,0.087237]
[1725991688129,0.087236,57313.0,57312.0,0.087637]
[1725991689228,0.384473,57313.0,57312.0,0.0014]
[1725991690024,0.393473,57313.0,57312.0,0.0024]
[1725991690227,0.306236,57313.0,57312.0,0.089637]
[1725991690736,0.306236,57313.0,57312.0,0.0024]
[1725991691629,0.393471,57313.0,57312.0,0.0024]
[1725991691828,0.306235,57313.0,57312.0,0.0024]
[1725991692021,0.106235,57313.0,57312.0,0.0024]
[1725991692426,0.106235,57313.0,57312.0,0.089637]
[1725991693025,0.019,57313.0,57312.0,0.089637]
[1725991693839,0.019,57313.0,57312.0,1.411377]
[1725991694032,0.019,57313.0,57312.0,1.498614]
[1725991694234,0.019,57313.0,57312.0,1.411377]
[1725991694431,0.019,57313.0,57312.0,0.811377]
[1725991694633,0.019,57313.0,57312.0,0.713977]
[1725991694835,0.019,57313.0,57312.0,0.089637]
[1725991699343,0.2,57320.0,57313.0,0.087235]
[1725991699639,0.11801241,57320.0,57319.0,0.10484228]
[1725991699847,0.11801241,57320.0,57319.0,0.22817193]
[1725991700237,0.20523741,57320.0,57319.0,0.22817193]
[1725991700438,0.20523741,57320.0,57319.0,0.12412965]
[1725991700741,0.21523741,57320.0,57319.0,0.12412965]
[1725991701746,0.21923741,57320.0,57319.0,0.12512965]
[1725991702242,0.21123741,57320.0,57319.0,0.12612965]
[1725991703134,0.12401241,57320.0,57319.0,0.12612965]
[1725991703537,0.03678741,57320.0,57319.0,0.21230803]
[1725991703842,0.03678741,57320.0,57319.0,0.44523448]
[1725991704144,0.006,57320.0,57319.0,1.96369648]
[1725991704343,0.095,57335.0,57319.0,1.96369648]
[1725991704344,0.0315467,57327.0,57319.0,1.65030684]
[1725991704541,0.087194,57340.0,57331.0,0.087207]
[1725991704741,0.087196,57339.0,57338.0,0.06930047]
[1725991704932,0.287196,57339.0,57338.0,0.06930047]
[1725991705135,0.087197,57338.0,57337.0,0.06930047]
[1725991705334,0.087197,57338.0,57333.0,0.087205]
[1725991705335,0.087199,57337.0,57336.0,0.06930047]
[1725991706240,0.087199,57337.0,57326.0,0.2008]
[1725991706241,0.1744,57336.0,57335.0,0.06930047]
[1725991706441,0.087202,57335.0,57333.0,0.06930047]
[1725991706747,0.2,57336.0,57333.0,0.06930047]
[1725991706748,0.174406,57334.0,57333.0,0.06930047]
[1725991706944,1.674406,57334.0,57333.0,0.06930047]
[1725991707142,1.587203,57334.0,57332.0,0.05195725]
[1725991707344,1.587203,57334.0,57326.0,0.08742559]
[1725991707345,0.58140786,57333.0,57326.0,0.0008]
[1725991707545,0.2,57327.0,57326.0,0.0008]
[1725991707744,0.32994393,57327.0,57326.0,0.0008]
[1725991707938,0.52334393,57327.0,57326.0,0.0008]
[1725991708140,0.61055793,57327.0,57326.0,0.0008]
[1725991709037,0.61055793,57327.0,57326.0,0.0018]
[1725991710448,0.80309163,57327.0,57326.0,0.0028]
[1725991710950,0.61155793,57327.0,57326.0,0.0028]
[1725991713347,0.64292822,57327.0,57326.0,0.0028]
[1725991713551,0.64293211,57327.0,57326.0,0.0028]
[1725991714551,0.51298429,57327.0,57326.0,0.07210047]
[1725991716147,0.31298429,57327.0,57326.0,0.07210047]
[1725991716858,0.60019829,57327.0,57326.0,0.07210047]
[1725991717352,0.60019829,57327.0,57326.0,0.0028]
[1725991717957,0.31298429,57327.0,57326.0,0.0028]
[1725991718159,0.03237029,57327.0,57326.0,0.090016]
[1725991718456,0.03237029,57327.0,57326.0,0.17669405]
[1725991718649,0.03237029,57327.0,57326.0,0.2985276]
[1725991719269,0.03237029,57327.0,57326.0,0.17669405]
[1725991719451,0.03237029,57327.0,57326.0,0.29852948]
[1725991720160,0.03237029,57327.0,57326.0,0.090016]
[1725991720358,0.03237029,57327.0,57326.0,0.17669405]
[1725991721051,0.03237029,57327.0,57326.0,0.29857022]
[1725991721362,0.03237029,57327.0,57326.0,0.090016]
[1725991721746,0.11958429,57327.0,57326.0,0.17669405]
[1725991721953,0.03237029,57327.0,57326.0,0.090016]
[1725991722959,0.03237029,57327.0,57326.0,0.15938036]
[1725991723145,0.03237029,57327.0,57326.0,0.0028]
[1725991723347,0.31958429,57327.0,57326.0,0.0028]
[1725991723663,0.11958429,57327.0,57326.0,0.0028]
[1725991723956,0.11958429,57327.0,57326.0,0.090016]
[1725991724257,0.03237029,57327.0,57326.0,0.090016]
[1725991724456,0.03237029,57327.0,57326.0,0.17669405]
[1725991724666,0.03237029,57327.0,57326.0,0.21208884]
[1725991724961,0.08729339,57333.0,57326.0,0.21208884]
[1725991725172,8.839e-05,57333.0,57332.0,0.15655578]
[1725991725458,8.839e-05,57333.0,57332.0,0.287206]
[1725991725660,8.839e-05,57333.0,57332.0,1.70671598]
[1725991725863,8.839e-05,57333.0,57332.0,1.62002875]
[1725991726247,0.00108839,57333.0,57332.0,1.72404241]
[1725991726453,0.00108839,57333.0,57332.0,1.62002875]
[1725991727157,0.00039931,57342.0,57335.0,0.174404]
[1725991727360,0.00039931,57342.0,57335.0,1.04096429]
[1725991727556,0.00039931,57342.0,57335.0,1.56406661]
[1725991728259,0.00039931,57342.0,57335.0,1.56318531]
[1725991729361,0.00039931,57342.0,57335.0,1.47598331]
[1725991729558,0.03388167,57336.0,57335.0,0.611242]
[1725991729758,0.07657812,57336.0,57335.0,1.211242]
[1725991729962,0.13009536,57336.0,57335.0,1.211242]
[1725991730363,0.19029112,57336.0,57335.0,1.211242]
[1725991730555,0.19029112,57336.0,57335.0,1.309042]
[1725991730958,0.23298757,57336.0,57335.0,0.185802]
[1725991731262,0.19029112,57336.0,57335.0,0.185802]
[1725991731450,0.08739891,57336.0,57335.0,0.185802]
[1725991731655,0.13009536,57336.0,57335.0,0.185802]
[1725991731857,0.19026874,57336.0,57335.0,0.185802]
[1725991732051,0.19026874,57336.0,57335.0,0.709042]
[1725991732251,0.13009536,57336.0,57335.0,1.309042]
[1725991732461,0.07657812,57336.0,57335.0,1.396244]
[1725991732667,0.13898475,57336.0,57335.0,1.483446]
[1725991732857,0.13898315,57340.0,57336.0,0.52324]
[1725991733164,0.12160009,57340.0,57339.0,0.461588]
[1725991733357,0.12160009,57341.0,57340.0,0.087194]
[1725991733665,0.00039931,57342.0,57341.0,0.174386]
[1725991733864,0.00039931,57342.0,57341.0,0.697586]
[1725991734067,0.00039931,57342.0,57341.0,1.298386]
[1725991734559,0.1219994,57342.0,57341.0,1.298386]
[1725991734861,0.00039931,57342.0,57341.0,1.298386]
[1725991737068,0.00039931,57342.0,57341.0,1.32980369]
[1725991737265,0.00072906,57345.0,57344.0,0.261564]
[1725991737467,0.00072906,57345.0,57344.0,0.985524]
[1725991737661,0.00072906,57345.0,57344.0,1.585524]
[1725991738461,0.00072906,57345.0,57344.0,1.65448142]
[1725991739363,0.00072906,57345.0,57344.0,1.585524]
[1725991739863,0.00072906,57345.0,57344.0,1.65448142]
[1725991740366,0.00072906,57345.0,57344.0,1.585524]
[1725991740764,0.00072906,57345.0,57344.0,0.898336]
[1725991741072,0.00072906,57345.0,57344.0,1.498336]
[1725991742270,0.00099395,57348.0,57347.0,0.174368]
[1725991742467,0.00104311,57352.0,57351.0,0.174356]
[1725991742665,0.00119447,57355.0,57351.0,0.374356]
[1725991742871,0.00141123,57361.0,57360.0,0.087164]
[1725991743070,0.00141123,57361.0,57360.0,1.298128]
[1725991743268,0.00141123,57361.0,57360.0,1.400628]
[1725991743760,0.00141123,57361.0,57360.0,0.13878668]
[1725991743964,0.00141123,57361.0,57360.0,0.087164]
[1725991744363,0.101,57365.0,57361.0,0.087162]
[1725991744679,0.087163,57361.0,57359.0,0.09998367]
[1725991744883,0.12984878,57360.0,57359.0,0.18714767]
[1725991745064,0.07634981,57360.0,57359.0,0.287164]
[1725991745264,0.22398775,57360.0,57359.0,0.287164]
[1725991745465,0.12984878,57360.0,57359.0,0.287164]
[1725991745774,0.03366783,57360.0,57359.0,0.287164]
[1725991746072,0.19031992,57362.0,57361.0,0.087162]
[1725991746267,0.39702238,57362.0,57361.0,0.087962]
[1725991746468,0.30288321,57362.0,57361.0,0.087962]
[1725991747075,0.12984851,57362.0,57361.0,0.087962]
[1725991748672,0.12984851,57362.0,57361.0,0.088962]
[1725991750374,0.03366776,57362.0,57361.0,0.088962]
[1725991750579,0.12984885,57362.0,57361.0,0.088962]
[1725991750874,0.12985013,57362.0,57361.0,0.088962]
[1725991751073,0.18942536,57362.0,57361.0,0.088962]
[1725991751271,0.12985013,57362.0,57361.0,0.088962]
[1725991751867,0.21701113,57362.0,57361.0,0.088962]
[1725991752073,0.21701113,57362.0,57361.0,0.0018]
[1725991752474,0.26020086,57362.0,57361.0,0.0018]
[1725991753275,0.26020086,57362.0,57361.0,0.05350765]
[1725991753471,0.26020086,57362.0,57361.0,0.0018]
[1725991754269,0.29180376,57362.0,57361.0,0.15784803]
[1725991754570,0.49180376,57362.0,57361.0,0.0018]
[1725991755078,0.20464276,57362.0,57361.0,0.0018]
[1725991755285,0.29180376,57362.0,57361.0,0.088962]
[1725991755471,0.29180376,57362.0,57361.0,0.15799536]
[1725991755781,0.1187639,57362.0,57361.0,0.07083336]
[1725991755970,0.3187639,57362.0,57361.0,0.07083336]
[1725991756467,0.1187639,57362.0,57361.0,0.0018]
[1725991758477,0.1187639,57362.0,57361.0,0.088962]
[1725991758974,0.0316029,57362.0,57361.0,0.288962]
[1725991759289,0.00159209,57364.0,57363.0,0.087159]
[1725991759675,0.08875009,57364.0,57363.0,0.087959]
[1725991760178,0.1224189,57364.0,57363.0,0.087959]
[1725991760383,0.1224189,57364.0,57363.0,0.088959]
[1725991760776,0.12242037,57364.0,57363.0,0.089959]
[1725991760975,0.15458639,57364.0,57363.0,0.089959]
[1725991761279,0.06742839,57364.0,57363.0,0.089959]
[1725991761976,0.03526237,57364.0,57363.0,0.089959]
[1725991764293,0.15652269,57364.0,57363.0,0.089959]
[1725991764587,0.03526237,57364.0,57363.0,0.089959]
[1725991765084,0.15652269,57364.0,57363.0,0.089959]
[1725991765793,0.15651906,57364.0,57363.0,0.089959]
[1725991766687,0.03525874,57364.0,57363.0,0.089959]
[1725991767076,0.15709798,57364.0,57363.0,0.089959]
[1725991767385,0.07794016,57364.0,57363.0,0.089959]
[1725991767579,0.00159209,57364.0,57363.0,0.17638842]
[1725991767788,0.00159209,57364.0,57363.0,0.089959]
[1725991768685,0.08875009,57364.0,57363.0,0.089959]
[1725991769376,0.08875009,57364.0,57363.0,0.0028]
[1725991769584,0.00159209,57364.0,57363.0,0.07215845]
[1725991769778,0.00159209,57364.0,57363.0,0.0028]
[1725991770179,0.00159209,57364.0,57363.0,0.089959]
[1725991771780,0.00159209,57364.0,57363.0,0.177118]
[1725991772086,0.00159209,57364.0,57363.0,0.30071659]
[1725991772283,0.00159209,57364.0,57363.0,0.38787559]
[1725991772483,0.01254223,57365.0,57364.0,0.784434]
[1725991772690,2.3e-07,57365.0,57364.0,1.27932451]
[1725991772877,2.3e-07,57365.0,57364.0,1.957927]
[1725991773076,4.2e-07,57367.0,57366.0,0.261465]
[1725991773284,4.2e-07,57367.0,57366.0,0.532958]
[1725991773586,4.2e-07,57367.0,57366.0,1.655918]
[1725991774477,4.2e-07,57367.0,57366.0,1.656918]
[1725991774879,4.2e-07,57367.0,57366.0,1.668918]
[1725991775882,4.2e-07,57367.0,57366.0,1.679918]
[1725991777287,4.2e-07,57367.0,57366.0,1.53282359]
[1725991777893,4.2e-07,57367.0,57366.0,0.40986359]
[1725991778189,4.2e-07,57367.0,57366.0,1.68028639]
[1725991778394,4.2e-07,57367.0,57366.0,1.63666822]
[1725991778892,4.2e-07,57367.0,57366.0,0.51370822]
[1725991779193,4.2e-07,57367.0,57366.0,1.63666822]
[1725991779584,4.2e-07,57367.0,57366.0,0.51370822]
[1725991780291,4.2e-07,57367.0,57366.0,0.39786359]
[1725991780486,4.2e-07,57367.0,57366.0,0.93282359]
[1725991780995,4.2e-07,57367.0,57366.0,0.92082359]
[1725991781195,4.2e-07,57367.0,57366.0,0.93282359]
[1725991781692,4.2e-07,57367.0,57366.0,0.92082359]
[1725991782086,4.2e-07,57367.0,57366.0,0.93282359]
[1725991782696,4.2e-07,57367.0,57366.0,0.797225]
[1725991782896,4.2e-07,57367.0,57366.0,1.409225]
[1725991783293,0.00204641,57370.0,57369.0,0.26145]
[1725991783486,0.12362842,57370.0,57369.0,0.26145]
[1725991783691,0.15728765,57370.0,57369.0,1.48557]
[1725991784486,0.15728765,57370.0,57369.0,1.49357]
[1725991784683,0.03570564,57370.0,57369.0,1.49357]
[1725991785100,0.03570564,57370.0,57369.0,1.50257]
[1725991785296,0.03570516,57370.0,57369.0,1.50257]
[1725991786695,0.03570516,57370.0,57369.0,1.53266731]
[1725991788191,0.03570516,57370.0,57369.0,2.13266731]
[1725991788898,0.03570516,57370.0,57369.0,1.00974731]
[1725991789288,0.03570516,57370.0,57369.0,2.13266731]
[1725991789691,0.12158201,57372.0,57371.0,0.261441]
[1725991790003,0.12158201,57372.0,57371.0,0.38592685]
[1725991791088,0.12158201,57372.0,57371.0,0.53935707]
[1725991791490,0.12158201,57372.0,57371.0,0.54535707]
[1725991793891,0.12158201,57372.0,57371.0,0.50174738]
[1725991794395,0.12158201,57372.0,57371.0,0.39792685]
[1725991794594,0.12158201,57372.0,57371.0,0.50175262]
[1725991795190,0.12158201,57372.0,57371.0,0.39192685]
[1725991795392,0.12158201,57372.0,57371.0,0.39792685]
[1725991795588,0.12158201,57372.0,57371.0,0.50176423]
[1725991796190,0.12158201,57372.0,57371.0,0.39792685]
[1725991796593,0.00146732,57373.0,57372.0,0.261438]
[1725991796903,0.00146732,57373.0,57372.0,0.58592385]
[1725991797902,0.00146732,57373.0,57372.0,0.73351095]
[1725991798198,0.00146732,57373.0,57372.0,1.85639095]
[1725991798403,0.00146732,57373.0,57372.0,1.86139095]
[1725991799195,0.00146732,57373.0,57372.0,1.86639095]
[1725991799591,0.00146732,57373.0,57372.0,1.26639095]
[1725991800304,0.087124,57387.0,57372.0,1.26639095]
[1725991800305,0.10422169,57403.0,57372.0,0.53707295]
[1725991800495,0.00270914,57407.0,57372.0,0.53707295]
[1725991800496,0.03017592,57394.0,57388.0,0.087921]
[1725991800806,0.03017592,57394.0,57388.0,0.21160685]
[1725991801113,0.11728792,57394.0,57388.0,0.3155084]
[1725991801402,0.03017592,57394.0,57388.0,0.21160685]
[1725991801906,0.1034937,57395.0,57388.0,0.5292356]
[1725991802105,0.1034937,57395.0,57394.0,0.087112]
[1725991802296,0.1034937,57395.0,57394.0,0.47821579]
[1725991802504,0.1034937,57395.0,57394.0,0.35699995]
[1725991803305,0.1034937,57395.0,57394.0,0.12314883]
[1725991803507,1.3132847,57395.0,57393.0,0.08653182]
[1725991803699,0.52272,57394.0,57392.0,0.08653182]
[1725991803894,0.1044937,57395.0,57391.0,0.08653182]
[1725991804098,0.13427881,57395.0,57394.0,0.288912]
[1725991804299,0.13427881,57395.0,57394.0,0.0018]
[1725991804495,0.65695881,57395.0,57394.0,0.0018]
[1725991804701,1.38674854,57395.0,57394.0,0.00017344]
[1725991805009,0.29576812,57395.0,57394.0,0.28728544]
[1725991805310,0.13280999,57395.0,57394.0,0.810792]
[1725991805615,0.19460469,57398.0,57397.0,0.174216]
[1725991805806,0.21330454,57398.0,57397.0,0.175016]
[1725991806497,0.00345807,57398.0,57397.0,0.175016]
[1725991806696,0.05691507,57398.0,57397.0,0.087908]
[1725991806904,0.15984706,57398.0,57397.0,0.087908]
[1725991807107,0.21330406,57398.0,57397.0,0.087908]
[1725991807508,0.05691507,57398.0,57397.0,0.087908]
[1725991807706,0.00345807,57398.0,57397.0,0.089908]
[1725991808010,0.00345807,57398.0,57397.0,0.088908]
[1725991808209,0.00345807,57398.0,57397.0,0.089908]
[1725991809110,0.00345807,57398.0,57397.0,0.088908]
[1725991809408,0.12478012,57398.0,57397.0,0.088908]
[1725991809803,0.00345807,57398.0,57397.0,0.088908]
[1725991810298,0.00345807,57398.0,57397.0,0.176016]
[1725991810499,0.00199729,57401.0,57397.0,0.0018]
[1725991810708,0.05345869,57400.0,57399.0,0.087105]
[1725991810908,0.00199729,57401.0,57400.0,0.087103]
[1725991811109,0.00199729,57401.0,57400.0,0.087903]
[1725991811699,0.00199729,57401.0,57400.0,0.29967303]
[1725991811905,0.00244962,57404.0,57403.0,0.087099]
[1725991812107,0.00244962,57404.0,57403.0,0.287899]
[1725991812412,0.05385576,57408.0,57406.0,0.087094]
[1725991812611,0.05385576,57408.0,57407.0,0.287893]
[1725991812918,0.05385576,57408.0,57407.0,0.41514404]
[1725991813300,0.05385576,57408.0,57407.0,0.50113081]
[1725991814113,0.05385576,57408.0,57407.0,0.30113081]
[1725991814312,0.05385576,57408.0,57407.0,0.50113081]
[1725991814511,0.1016,57416.0,57407.0,0.41388046]
[1725991814712,0.1016,57416.0,57409.0,0.08709]
[1725991814916,0.1016,57416.0,57415.0,0.28788]
[1725991816020,0.1016,57416.0,57415.0,0.35662717]
[1725991816314,0.1016,57416.0,57415.0,0.28788]
[1725991817310,0.188679,57416.0,57415.0,0.25233832]
[1725991817514,0.1016,57416.0,57415.0,0.2008]
[1725991818017,0.1016,57416.0,57415.0,0.28788]
[1725991818718,0.188679,57416.0,57415.0,0.2008]
[1725991819116,1.398278,57416.0,57415.0,0.0008]
[1725991819419,1.398278,57416.0,57415.0,0.6008]
[1725991820123,1.311199,57416.0,57415.0,0.6008]
[1725991820320,0.30992955,57416.0,57415.0,0.6008]
[1725991820523,0.711199,57416.0,57415.0,0.6008]
[1725991820714,1.311199,57416.0,57415.0,0.6008]
[1725991820915,0.711199,57416.0,57415.0,0.6008]
[1725991821115,1.311199,57416.0,57415.0,0.6008]
[1725991821412,1.311199,57416.0,57415.0,0.68788]
[1725991821610,0.188679,57416.0,57415.0,0.68788]
[1725991822824,1.311199,57416.0,57415.0,0.6008]
[1725991823017,0.188679,57416.0,57415.0,0.6008]
[1725991823317,1.311199,57416.0,57415.0,0.6008]
[1725991823915,0.188679,57416.0,57415.0,0.6008]
[1725991824108,0.188679,57416.0,57415.0,0.68788]
[1725991824315,0.30992955,57416.0,57415.0,0.68788]
[1725991824616,0.1016,57416.0,57415.0,0.68788]
[1725991825512,0.00372463,57417.0,57416.0,0.087079]
[1725991825712,0.00372463,57417.0,57416.0,0.287879]
[1725991826824,0.00252229,57420.0,57416.0,0.26954717]
[1725991827016,0.00252229,57420.0,57419.0,0.05165458]
[1725991827217,0.00252229,57420.0,57419.0,0.087874]